[Event "CZE-ch FIDE Open 2020"]
[Site "Kouty nad Desnou"]
[Date "2020.03.08"]
[Round "2.12"]
[White "Vaculik, Martin"]
[Black "Nguyen, Thai Dai Vinh"]
[Result "1/2-1/2"]
[ECO "B98"]
[WhiteElo "2268"]
[BlackElo "2018"]
[Annotator "ChessBase"]
[PlyCount "42"]
[EventDate "2020.03.07"]
[EventCountry "CZE"]
[SourceTitle "playchess.com"]
[Source "ChessBase"]
[SourceQuality "1"]
[TimeControl "5400+30"]

1. e4 {[%emt 0:00:00]} c5 {[%emt 0:00:00]} 2. Nf3 {[%emt 0:00:23]} d6 {[%emt 0:01:03]} 3. d4 {[%emt 0:00:19]} cxd4 {[%emt 0:00:04]} 4. Nxd4 {[%emt 0:00:04]} Nf6 {[%emt 0:00:03]} 5. Nc3 {[%emt 0:00:09]} a6 {[%emt 0:00:03]} 6. Bg5 {[%emt 0:00:05]} e6 {[%emt 0:00:21]} 7. f4 {[%emt 0:00:07]} Be7 {[%emt 0:00:32]} 8. Qf3 {[%emt 0:01:17]} Qc7 {[%emt 0:06:19]} 9. O-O-O {[%emt 0:03:39]} h6 {[%emt 0:04:06]} 10. Bxf6 {[%emt 0:08:33]} gxf6 {[%emt 0:01:58]} 11. f5 {[%emt 0:06:36]} e5 {[%emt 0:19:13]} 12. Nd5 {[%emt 0:06:45]} Qd8 {[%emt 0:01:16]} 13. Nb3 {[%emt 0:01:59]} b6 {[%emt 0:06:55]} 14. Qg3 {[%emt 0:09:45]} Bf8 {[%emt 0:04:51]} 15. Qc3 {[%emt 0:03:28]} Kd7 {[%emt 0:04:36]} 16. Qb4 {[%emt 0:03:32]} Kc6 {[%emt 0:05:22]} 17. Qc4+ {[%emt 0:18:18]} Kb7 {[%emt 0:06:02]} 18. Na5+ {[%emt 0:15:33]} bxa5 {[%emt 0:03:55]} 19. Qb3+ {[%emt 0:00:06]} Ka7 {[%emt 0:01:17]} 20. Qe3+ {[%emt 0:00:05]} Kb7 {[%emt 0:00:06]} 21. Qb3+ {[%emt 0:00:24]} Ka7 {[%emt 0:00:11]} 1/2-1/2

[Event "CZE-ch FIDE Open 2020"]
[Site "Kouty nad Desnou"]
[Date "2020.03.08"]
[Round "2.13"]
[White "Tuma, Jan"]
[Black "Husa, Daniel"]
[Result "1/2-1/2"]
[ECO "B45"]
[WhiteElo "1993"]
[BlackElo "1814"]
[Annotator "ChessBase"]
[PlyCount "46"]
[EventDate "2020.03.07"]
[EventCountry "CZE"]
[SourceTitle "playchess.com"]
[Source "ChessBase"]
[SourceQuality "1"]
[TimeControl "5400+30"]

1. e4 {[%emt 0:00:00]} c5 {[%emt 0:00:00]} 2. Ne2 {[%emt 0:00:31]} e6 {[%emt 0:00:00]} 3. d4 {[%emt 0:00:26]} cxd4 {[%emt 0:00:00]} 4. Nxd4 {[%emt 0:00:08]} Nf6 {[%emt 0:00:00]} 5. Nc3 {[%emt 0:00:32]} Nc6 {[%emt 0:00:03]} 6. g3 {[%emt 0:05:02]} Bb4 {[%emt 0:01:24]} 7. Bg2 {[%emt 0:02:05]} d5 {[%emt 0:02:32]} 8. exd5 {[%emt 0:12:43]} Nxd5 {[%emt 0:01:35]} 9. Nxc6 {[%emt 0:00:50]} bxc6 {[%emt 0:00:38]} 10. O-O {[%emt 0:25:26]} O-O {[%emt 0:03:13]} 11. Ne4 {[%emt 0:03:03]} Ba6 {[%emt 0:09:50]} 12. Re1 {[%emt 0:19:13]} Bxe1 {[%emt 0:01:17]} 13. Qxe1 {[%emt 0:00:06]} Nb4 {[%emt 0:12:29]} 14. Bg5 {[%emt 0:04:00]} Qb6 {[%emt 0:06:21]} 15. Qd2 {[%emt 0:00:14]} Nd5 {[%emt 0:02:42]} 16. b3 {[%emt 0:08:31]} f6 {[%emt 0:10:19]} 17. Bh4 {[%emt 0:00:56]} Rad8 {[%emt 0:05:44]} 18. g4 {[%emt 0:02:25]} e5 {[%emt 0:18:27]} 19. Bf3 {[%emt 0:05:41]} Nf4 {[%emt 0:02:57]} 20. Qe1 {[%emt 0:00:12]} Rd4 {[%emt 0:04:20]} 21. Qe3 {[%emt 0:03:20]} Bb7 {[%emt 0:06:38]} 22. Re1 {[%emt 0:01:40]} c5 {[%emt 0:05:52]} 23. Bg3 {[%emt 0:00:24]} Ne6 {[%emt 0:01:17]} 1/2-1/2

[Event "CZE-ch FIDE Open 2020"]
[Site "Kouty nad Desnou"]
[Date "2020.03.08"]
[Round "2.14"]
[White "Zdechovsky, Tobias"]
[Black "Volaninova, Sarka"]
[Result "1/2-1/2"]
[ECO "A47"]
[WhiteElo "1922"]
[BlackElo "1689"]
[Annotator "ChessBase"]
[PlyCount "45"]
[EventDate "2020.03.07"]
[EventCountry "CZE"]
[SourceTitle "playchess.com"]
[Source "ChessBase"]
[SourceQuality "1"]
[TimeControl "5400+30"]

1. d4 {[%emt 0:00:00]} Nf6 {[%emt 0:00:00]} 2. Bf4 {[%emt 0:00:00]} e6 {[%emt 0:00:37]} 3. e3 {[%emt 0:00:00]} b6 {[%emt 0:00:51]} 4. Nd2 {[%emt 0:00:15]} Bb7 {[%emt 0:00:56]} 5. Ngf3 {[%emt 0:00:41]} Be7 {[%emt 0:01:36]} 6. h3 {[%emt 0:00:47]} O-O {[%emt 0:02:08]} 7. Bd3 {[%emt 0:00:51]} d6 {[%emt 0:03:07]} 8. O-O {[%emt 0:01:18]} Nbd7 {[%emt 0:01:26]} 9. e4 {[%emt 0:01:25]} c5 {[%emt 0:05:44]} 10. c3 {[%emt 0:00:11]} Rc8 {[%emt 0:02:48]} 11. a4 {[%emt 0:02:33]} Qc7 {[%emt 0:04:15]} 12. Qe2 {[%emt 0:03:46]} Rfd8 {[%emt 0:04:45]} 13. Bh2 {[%emt 0:18:20]} Nf8 {[%emt 0:03:21]} 14. e5 {[%emt 0:07:27]} Ne8 {[%emt 0:05:49]} 15. a5 {[%emt 0:09:27]} Ng6 {[%emt 0:05:31]} 16. axb6 {[%emt 0:00:58]} axb6 {[%emt 0:00:37]} 17. Ne4 {[%emt 0:20:02]} d5 {[%emt 0:03:54]} 18. Neg5 {[%emt 0:01:29]} Nf8 {[%emt 0:08:27]} 19. h4 {[%emt 0:01:16]} Ra8 {[%emt 0:04:28]} 20. Nd2 {[%emt 0:05:15]} Rxa1 {[%emt 0:01:55]} 21. Rxa1 {[%emt 0:00:37]} Ra8 {[%emt 0:00:51]} 22. Rxa8 {[%emt 0:03:37]} Bxa8 {[%emt 0:00:07]} 23. f4 {[%emt 0:01:54]} 1/2-1/2

[Event "CZE-ch FIDE Open 2020"]
[Site "Kouty nad Desnou"]
[Date "2020.03.08"]
[Round "2.15"]
[White "Novotny, David"]
[Black "Vokoun, Tomas"]
[Result "1/2-1/2"]
[ECO "B80"]
[WhiteElo "1910"]
[BlackElo "1673"]
[Annotator "ChessBase"]
[PlyCount "109"]
[EventDate "2020.03.07"]
[EventCountry "CZE"]
[SourceTitle "playchess.com"]
[Source "ChessBase"]
[SourceQuality "1"]
[TimeControl "5400+30"]

1. e4 {[%emt 0:00:00]} c5 {[%emt 0:00:00]} 2. Nc3 {[%emt 0:00:07]} e6 {[%emt 0:01:33]} 3. Nf3 {[%emt 0:01:23]} d6 {[%emt 0:01:25]} 4. d4 {[%emt 0:01:14]} cxd4 {[%emt 0:00:20]} 5. Nxd4 {[%emt 0:00:23]} Nf6 {[%emt 0:00:28]} 6. Bd3 {[%emt 0:04:17]} Nbd7 {[%emt 0:02:08]} 7. O-O {[%emt 0:03:15]} Be7 {[%emt 0:01:21]} 8. Be3 {[%emt 0:02:46]} O-O {[%emt 0:01:47]} 9. f4 {[%emt 0:01:07]} a6 {[%emt 0:01:42]} 10. f5 {[%emt 0:08:52]} e5 {[%emt 0:00:39]} 11. Nb3 {[%emt 0:01:21]} b5 {[%emt 0:00:50]} 12. g4 {[%emt 0:03:27]} b4 {[%emt 0:01:37]} 13. Nb1 {[%emt 0:04:03]} Bb7 {[%emt 0:02:53]} 14. N1d2 {[%emt 0:03:07]} d5 {[%emt 0:02:18]} 15. Qf3 {[%emt 0:02:54]} dxe4 {[%emt 0:15:08]} 16. Nxe4 {[%emt 0:00:57]} Kh8 {[%emt 0:02:52]} 17. Rae1 {[%emt 0:04:03]} a5 {[%emt 0:04:31]} 18. Re2 {[%emt 0:09:22]} a4 {[%emt 0:04:52]} 19. Nbd2 {[%emt 0:00:20]} Nc5 {[%emt 0:00:30]} 20. g5 {[%emt 0:04:17]} Nfxe4 {[%emt 0:13:46]} 21. Bxe4 {[%emt 0:00:47]} Nxe4 {[%emt 0:00:42]} 22. Nxe4 {[%emt 0:00:15]} Qd5 {[%emt 0:01:35]} 23. f6 {[%emt 0:07:31]} gxf6 {[%emt 0:04:49]} 24. gxf6 {[%emt 0:00:35]} Rg8+ {[%emt 0:06:52]} 25. Kf2 {[%emt 0:07:12]} Bf8 {[%emt 0:07:20]} 26. Ng5 {[%emt 0:05:58]} Qxf3+ {[%emt 0:10:47]} 27. Nxf3 {[%emt 0:00:07]} Ra6 {[%emt 0:01:30]} 28. Nxe5 {[%emt 0:15:04]} Rxf6+ {[%emt 0:00:30]} 29. Ke1 {[%emt 0:00:30]} Rxf1+ {[%emt 0:00:30]} 30. Kxf1 {[%emt 0:00:30]} Ba6 {[%emt 0:00:30]} 31. Nxf7+ {[%emt 0:00:30]} Kg7 {[%emt 0:00:08]} 32. Nh6 {[%emt 0:00:13]} Bd6 {[%emt 0:02:46]} 33. Nf5+ {[%emt 0:01:56]} Kf6 {[%emt 0:01:10]} 34. Nxd6 {[%emt 0:00:22]} Bxe2+ {[%emt 0:00:06]} 35. Kxe2 {[%emt 0:00:15]} Rg2+ {[%emt 0:00:17]} 36. Kd3 {[%emt 0:04:09]} Rxh2 {[%emt 0:00:13]} 37. Ne4+ {[%emt 0:00:59]} Kf5 {[%emt 0:00:49]} 38. Nc5 {[%emt 0:01:01]} a3 {[%emt 0:01:36]} 39. b3 {[%emt 0:00:34]} h5 {[%emt 0:00:37]} 40. Ne4 {[%emt 0:01:35]} h4 {[%emt 0:01:54]} 41. Bc5 {[%emt 0:00:57]} Rh3+ {[%emt 0:01:03]} 42. Kd4 {[%emt 0:01:05]} Rh1 {[%emt 0:00:48]} 43. Bxb4 {[%emt 0:00:27]} Ra1 {[%emt 0:00:57]} 44. Bxa3 {[%emt 0:01:35]} Rxa2 {[%emt 0:00:08]} 45. Bd6 {[%emt 0:00:36]} Rxc2 {[%emt 0:00:29]} 46. Ke3 {[%emt 0:00:28]} Rb2 {[%emt 0:01:25]} 47. Nd2 {[%emt 0:00:28]} Ke6 {[%emt 0:01:40]} 48. Bf4 {[%emt 0:00:27]} Kd5 {[%emt 0:01:11]} 49. Kf3 {[%emt 0:00:23]} Kc5 {[%emt 0:00:49]} 50. Kg4 {[%emt 0:00:42]} Kb4 {[%emt 0:00:37]} 51. Bd6+ {[%emt 0:00:13]} Kb5 {[%emt 0:00:23]} 52. Bf4 {[%emt 0:00:45]} Kb4 {[%emt 0:00:15]} 53. Bd6+ {[%emt 0:00:26]} Kb5 {[%emt 0:00:07]} 54. Nf3 {[%emt 0:00:38]} Rxb3 {[%emt 0:00:28]} 55. Nd4+ {[%emt 0:00:21]} 1/2-1/2

[Event "CZE-ch FIDE Open 2020"]
[Site "Kouty nad Desnou"]
[Date "2020.03.09"]
[Round "3.2"]
[White "Dejmal, Ondrej"]
[Black "Pycha, Patrik"]
[Result "0-1"]
[ECO "C01"]
[WhiteElo "1757"]
[BlackElo "2024"]
[Annotator "ChessBase"]
[PlyCount "58"]
[EventDate "2020.03.07"]
[EventCountry "CZE"]
[SourceTitle "playchess.com"]
[Source "ChessBase"]
[SourceQuality "1"]
[TimeControl "5400+30"]

1. e4 {[%emt 0:00:00]} e6 {[%emt 0:00:00]} 2. d4 {[%emt 0:00:00]} d5 {[%emt 0:00:00]} 3. exd5 {[%emt 0:00:12]} exd5 {[%emt 0:00:00]} 4. c4 {[%emt 0:02:07]} Nf6 {[%emt 0:00:13]} 5. Nf3 {[%emt 0:00:51]} Bb4+ {[%emt 0:02:08]} 6. Nc3 {[%emt 0:01:00]} O-O {[%emt 0:00:15]} 7. Be2 {[%emt 0:03:45]} dxc4 {[%emt 0:01:31]} 8. Bxc4 {[%emt 0:00:10]} Re8+ {[%emt 0:01:53]} 9. Be3 {[%emt 0:00:33]} Be6 {[%emt 0:05:27]} 10. Bxe6 {[%emt 0:08:01]} Rxe6 {[%emt 0:00:09]} 11. O-O {[%emt 0:00:39]} Nbd7 {[%emt 0:04:26]} 12. Qb3 {[%emt 0:08:37]} a5 {[%emt 0:11:36]} 13. Rad1 {[%emt 0:07:52]} Nb6 {[%emt 0:01:14]} 14. a3 {[%emt 0:07:29]} Bxc3 {[%emt 0:01:28]} 15. bxc3 {[%emt 0:02:54]} a4 {[%emt 0:00:07]} 16. Qa2 {[%emt 0:10:20]} Nbd5 {[%emt 0:07:00]} 17. Bd2 {[%emt 0:04:17]} Ne4 {[%emt 0:02:24]} 18. Qc2 {[%emt 0:10:40]} Qe7 {[%emt 0:05:49]} 19. c4 {[%emt 0:04:11]} Nxd2 {[%emt 0:01:19]} 20. Rxd2 {[%emt 0:01:49]} Nf4 {[%emt 0:01:24]} 21. d5 {[%emt 0:05:01]} Rg6 {[%emt 0:03:24]} 22. g3 {[%emt 0:14:09]} Qxa3 {[%emt 0:04:17]} 23. Qe4 {[%emt 0:01:37]} Nh3+ {[%emt 0:13:00]} 24. Kg2 {[%emt 0:01:07]} f5 {[%emt 0:02:35]} 25. Qh4 {[%emt 0:04:31]} Rh6 {[%emt 0:01:38]} 26. Qd4 {[%emt 0:00:04]} Re8 {[%emt 0:04:37]} 27. Nh4 {[%emt 0:00:57]} Re4 {[%emt 0:01:10]} 28. Qd3 {[%emt 0:00:35]} Qxd3 {[%emt 0:00:42]} 29. Rxd3 {[%emt 0:00:02]} Rexh4 {[%emt 0:00:37]} 0-1

[Event "CZE-ch FIDE Open 2020"]
[Site "Kouty nad Desnou"]
[Date "2020.03.09"]
[Round "3.4"]
[White "Sikorova, Olga"]
[Black "Broz, Jan"]
[Result "1-0"]
[ECO "A36"]
[WhiteElo "2199"]
[BlackElo "1481"]
[Annotator "ChessBase"]
[PlyCount "71"]
[EventDate "2020.03.07"]
[EventCountry "CZE"]
[SourceTitle "playchess.com"]
[Source "ChessBase"]
[SourceQuality "1"]
[TimeControl "5400+30"]

1. c4 {[%emt 0:00:00]} Nf6 {[%emt 0:00:00]} 2. g3 {[%emt 0:00:00]} c5 {[%emt 0:00:04]} 3. Bg2 {[%emt 0:00:00]} g6 {[%emt 0:00:20]} 4. Nc3 {[%emt 0:00:06]} Bg7 {[%emt 0:00:22]} 5. e4 {[%emt 0:00:08]} d6 {[%emt 0:00:05]} 6. Nge2 {[%emt 0:00:08]} O-O {[%emt 0:00:19]} 7. O-O {[%emt 0:00:28]} Nc6 {[%emt 0:00:20]} 8. d3 {[%emt 0:00:11]} Bg4 {[%emt 0:00:35]} 9. f3 {[%emt 0:00:21]} Bd7 {[%emt 0:00:10]} 10. h3 {[%emt 0:00:04]} Ne8 {[%emt 0:08:47]} 11. f4 {[%emt 0:00:57]} f5 {[%emt 0:08:28]} 12. Be3 {[%emt 0:02:19]} Nc7 {[%emt 0:08:23]} 13. d4 {[%emt 0:06:30]} cxd4 {[%emt 0:13:04]} 14. Nxd4 {[%emt 0:00:23]} Ne6 {[%emt 0:03:36]} 15. Nxc6 {[%emt 0:02:45]} bxc6 {[%emt 0:03:58]} 16. exf5 {[%emt 0:02:06]} gxf5 {[%emt 0:06:36]} 17. Qd2 {[%emt 0:03:02]} a6 {[%emt 0:07:02]} 18. b3 {[%emt 0:07:29]} Rb8 {[%emt 0:03:14]} 19. Rad1 {[%emt 0:09:21]} Kh8 {[%emt 0:01:54]} 20. Na4 {[%emt 0:03:03]} c5 {[%emt 0:01:49]} 21. Nc3 {[%emt 0:14:30]} Nd4 {[%emt 0:04:51]} 22. Kh2 {[%emt 0:00:38]} Qe8 {[%emt 0:01:36]} 23. Nd5 {[%emt 0:06:15]} e6 {[%emt 0:05:21]} 24. Rfe1 {[%emt 0:08:09]} Qc8 {[%emt 0:03:55]} 25. Nc3 {[%emt 0:04:28]} Qc7 {[%emt 0:03:22]} 26. Ne2 {[%emt 0:05:57]} e5 {[%emt 0:02:21]} 27. Nc3 {[%emt 0:01:02]} Bc6 {[%emt 0:02:09]} 28. Bxd4 {[%emt 0:04:16]} cxd4 {[%emt 0:01:14]} 29. Bxc6 {[%emt 0:05:23]} dxc3 {[%emt 0:04:38]} 30. Qxd6 {[%emt 0:00:12]} Qxd6 {[%emt 0:00:43]} 31. Rxd6 {[%emt 0:00:02]} Rbd8 {[%emt 0:00:46]} 32. c5 {[%emt 0:05:26]} e4 {[%emt 0:01:59]} 33. Kg2 {[%emt 0:02:36]} Bd4 {[%emt 0:01:16]} 34. b4 {[%emt 0:00:16]} Be3 {[%emt 0:00:57]} 35. Rxe3 {[%emt 0:00:28]} Rb8 {[%emt 0:01:06]} 36. a3 {[%emt 0:00:15]} 1-0

[Event "CZE-ch FIDE Open 2020"]
[Site "Kouty nad Desnou"]
[Date "2020.03.09"]
[Round "3.9"]
[White "Ptacek, Jan"]
[Black "Zamecnik, Jan"]
[Result "1-0"]
[ECO "B38"]
[WhiteElo "1911"]
[BlackElo "1850"]
[Annotator "ChessBase"]
[PlyCount "65"]
[EventDate "2020.03.07"]
[EventCountry "CZE"]
[SourceTitle "playchess.com"]
[Source "ChessBase"]
[SourceQuality "1"]
[TimeControl "5400+30"]

1. e4 {[%emt 0:00:00]} c5 {[%emt 0:00:00]} 2. Nf3 {[%emt 0:00:00]} Nc6 {[%emt 0:00:15]} 3. c4 {[%emt 0:00:00]} g6 {[%emt 0:01:48]} 4. d4 {[%emt 0:00:00]} cxd4 {[%emt 0:00:23]} 5. Nxd4 {[%emt 0:00:01]} Bg7 {[%emt 0:00:08]} 6. Be3 {[%emt 0:00:04]} d6 {[%emt 0:05:03]} 7. Nc3 {[%emt 0:00:21]} Nf6 {[%emt 0:00:12]} 8. Be2 {[%emt 0:00:04]} O-O {[%emt 0:00:06]} 9. O-O {[%emt 0:02:18]} a6 {[%emt 0:05:52]} 10. f3 {[%emt 0:02:18]} Bd7 {[%emt 0:14:59]} 11. Qd2 {[%emt 0:00:16]} Nxd4 {[%emt 0:03:07]} 12. Bxd4 {[%emt 0:00:06]} Qa5 {[%emt 0:06:17]} 13. Rfd1 {[%emt 0:04:01]} Kh8 {[%emt 0:16:07]} 14. Rab1 {[%emt 0:09:09]} Rfc8 {[%emt 0:10:53]} 15. Qe3 {[%emt 0:10:43]} Qd8 {[%emt 0:08:56]} 16. Bxf6 {[%emt 0:02:58]} Bxf6 {[%emt 0:03:04]} 17. Nd5 {[%emt 0:00:04]} Bg7 {[%emt 0:00:05]} 18. Nb6 {[%emt 0:01:24]} Rab8 {[%emt 0:09:15]} 19. Nxc8 {[%emt 0:00:30]} Rxc8 {[%emt 0:00:30]} 20. b4 {[%emt 0:00:30]} Be6 {[%emt 0:00:30]} 21. Rbc1 {[%emt 0:00:30]} Qf8 {[%emt 0:00:30]} 22. Qb6 {[%emt 0:01:33]} Bh6 {[%emt 0:01:17]} 23. Rc2 {[%emt 0:00:30]} Rc6 {[%emt 0:01:53]} 24. Qd4+ {[%emt 0:03:58]} Bg7 {[%emt 0:00:26]} 25. Qf2 {[%emt 0:00:22]} Qc8 {[%emt 0:06:23]} 26. Rdc1 {[%emt 0:03:55]} Bh6 {[%emt 0:01:35]} 27. f4 {[%emt 0:00:27]} f5 {[%emt 0:00:07]} 28. Bd3 {[%emt 0:03:12]} Qf8 {[%emt 0:03:19]} 29. Re1 {[%emt 0:03:01]} Qf7 {[%emt 0:00:33]} 30. exf5 {[%emt 0:02:01]} gxf5 {[%emt 0:00:48]} 31. Qe2 {[%emt 0:00:38]} d5 {[%emt 0:00:21]} 32. c5 {[%emt 0:04:52]} Bxf4 {[%emt 0:00:44]} 33. b5 {[%emt 0:00:22]} 1-0

[Event "CZE-ch FIDE Open 2020"]
[Site "Kouty nad Desnou"]
[Date "2020.03.09"]
[Round "3.10"]
[White "Kucera, Tomas"]
[Black "Merinsky, Vaclav"]
[Result "1-0"]
[ECO "A39"]
[WhiteElo "1985"]
[BlackElo "1764"]
[Annotator "ChessBase"]
[PlyCount "77"]
[EventDate "2020.03.07"]
[EventCountry "CZE"]
[SourceTitle "playchess.com"]
[Source "ChessBase"]
[SourceQuality "1"]
[TimeControl "5400+30"]

1. c4 {[%emt 0:00:00]} c5 {[%emt 0:00:00]} 2. Nc3 {[%emt 0:00:00]} Nc6 {[%emt 0:00:00]} 3. Nf3 {[%emt 0:00:00]} Nf6 {[%emt 0:00:34]} 4. g3 {[%emt 0:00:01]} g6 {[%emt 0:00:18]} 5. Bg2 {[%emt 0:00:07]} Bg7 {[%emt 0:00:09]} 6. d4 {[%emt 0:00:04]} cxd4 {[%emt 0:01:10]} 7. Nxd4 {[%emt 0:00:09]} O-O {[%emt 0:00:29]} 8. O-O {[%emt 0:00:06]} Qb6 {[%emt 0:04:14]} 9. Nb3 {[%emt 0:00:24]} d6 {[%emt 0:02:13]} 10. Nd5 {[%emt 0:23:23]} Nxd5 {[%emt 0:01:47]} 11. cxd5 {[%emt 0:00:09]} Na5 {[%emt 0:01:06]} 12. Be3 {[%emt 0:18:31]} Qa6 {[%emt 0:04:09]} 13. Bd4 {[%emt 0:09:11]} Nxb3 {[%emt 0:01:52]} 14. axb3 {[%emt 0:00:10]} Qb5 {[%emt 0:00:09]} 15. Bxg7 {[%emt 0:00:33]} Kxg7 {[%emt 0:00:13]} 16. Qd4+ {[%emt 0:00:08]} Kg8 {[%emt 0:00:29]} 17. Qe3 {[%emt 0:00:08]} Re8 {[%emt 0:01:01]} 18. Rfc1 {[%emt 0:08:11]} Bg4 {[%emt 0:12:36]} 19. Rc4 {[%emt 0:01:15]} Bf5 {[%emt 0:01:50]} 20. Rac1 {[%emt 0:07:52]} Qb6 {[%emt 0:03:37]} 21. Qxb6 {[%emt 0:00:30]} axb6 {[%emt 0:03:55]} 22. Rc7 {[%emt 0:00:18]} Rac8 {[%emt 0:00:29]} 23. h4 {[%emt 0:03:04]} b5 {[%emt 0:06:22]} 24. R1c3 {[%emt 0:00:53]} Ra8 {[%emt 0:09:38]} 25. Rxb7 {[%emt 0:01:23]} Ra1+ {[%emt 0:01:22]} 26. Kh2 {[%emt 0:00:10]} Rb1 {[%emt 0:00:09]} 27. e4 {[%emt 0:01:57]} Bg4 {[%emt 0:05:13]} 28. f3 {[%emt 0:00:09]} Bc8 {[%emt 0:01:01]} 29. Rbc7 {[%emt 0:00:11]} Ba6 {[%emt 0:00:17]} 30. R3c6 {[%emt 0:00:07]} Ra8 {[%emt 0:00:31]} 31. Rxe7 {[%emt 0:08:21]} Rxb2 {[%emt 0:01:45]} 32. Rxd6 {[%emt 0:00:12]} Bc8 {[%emt 0:14:53]} 33. Rd8+ {[%emt 0:00:53]} Kg7 {[%emt 0:00:24]} 34. Ree8 {[%emt 0:01:41]} Raa2 {[%emt 0:02:18]} 35. Rxc8 {[%emt 0:01:18]} Rxg2+ {[%emt 0:02:12]} 36. Kh3 {[%emt 0:00:10]} f5 {[%emt 0:09:41]} 37. g4 {[%emt 0:01:40]} f4 {[%emt 0:00:22]} 38. Rc7+ {[%emt 0:00:18]} Kf6 {[%emt 0:01:16]} 39. e5# {[%emt 0:00:21]} 1-0

[Event "CZE-ch FIDE Open 2020"]
[Site "Kouty nad Desnou"]
[Date "2020.03.09"]
[Round "3.12"]
[White "Nguyen, Thai Dai Vinh"]
[Black "Kosut, Tomas"]
[Result "1/2-1/2"]
[ECO "B78"]
[WhiteElo "2018"]
[BlackElo "1878"]
[Annotator "ChessBase"]
[PlyCount "64"]
[EventDate "2020.03.07"]
[EventCountry "CZE"]
[SourceTitle "playchess.com"]
[Source "ChessBase"]
[SourceQuality "1"]
[TimeControl "5400+30"]

1. e4 {[%emt 0:00:00]} c5 {[%emt 0:00:00]} 2. Nf3 {[%emt 0:00:00]} d6 {[%emt 0:00:25]} 3. d4 {[%emt 0:00:00]} cxd4 {[%emt 0:00:09]} 4. Nxd4 {[%emt 0:00:00]} Nf6 {[%emt 0:00:34]} 5. Nc3 {[%emt 0:00:00]} g6 {[%emt 0:00:12]} 6. Be3 {[%emt 0:00:00]} Bg7 {[%emt 0:00:19]} 7. f3 {[%emt 0:00:00]} O-O {[%emt 0:00:25]} 8. Qd2 {[%emt 0:00:09]} Nc6 {[%emt 0:00:29]} 9. Bc4 {[%emt 0:00:05]} Bd7 {[%emt 0:00:43]} 10. O-O-O {[%emt 0:00:05]} Ne5 {[%emt 0:03:00]} 11. Bb3 {[%emt 0:00:06]} Rb8 {[%emt 0:01:45]} 12. h4 {[%emt 0:01:44]} b5 {[%emt 0:00:30]} 13. h5 {[%emt 0:01:48]} Nc4 {[%emt 0:01:55]} 14. Bxc4 {[%emt 0:00:11]} bxc4 {[%emt 0:00:05]} 15. Bh6 {[%emt 0:07:50]} Qb6 {[%emt 0:02:09]} 16. b3 {[%emt 0:01:24]} cxb3 {[%emt 0:05:26]} 17. axb3 {[%emt 0:07:45]} Qa5 {[%emt 0:08:40]} 18. Kb2 {[%emt 0:04:01]} Bxh6 {[%emt 0:10:12]} 19. Qxh6 {[%emt 0:00:13]} Rfc8 {[%emt 0:04:03]} 20. Nde2 {[%emt 0:08:18]} Be6 {[%emt 0:05:55]} 21. hxg6 {[%emt 0:02:05]} fxg6 {[%emt 0:00:21]} 22. Nd5 {[%emt 0:22:03]} Bxd5 {[%emt 0:22:32]} 23. exd5 {[%emt 0:01:56]} Qc5 {[%emt 0:07:09]} 24. Qd2 {[%emt 0:07:13]} a5 {[%emt 0:01:49]} 25. Nc3 {[%emt 0:10:50]} Rc7 {[%emt 0:02:57]} 26. Qd4 {[%emt 0:06:14]} Rbc8 {[%emt 0:05:25]} 27. Qxc5 {[%emt 0:00:19]} Rxc5 {[%emt 0:00:06]} 28. Rd3 {[%emt 0:01:01]} Nd7 {[%emt 0:03:16]} 29. f4 {[%emt 0:02:51]} Nf6 {[%emt 0:02:21]} 30. Rc1 {[%emt 0:01:28]} Kf7 {[%emt 0:01:30]} 31. Rcd1 {[%emt 0:01:03]} Ng4 {[%emt 0:00:41]} 32. R1d2 {[%emt 0:01:07]} Nf6 {[%emt 0:00:28]} 1/2-1/2

[Event "CZE-ch FIDE Open 2020"]
[Site "Kouty nad Desnou"]
[Date "2020.03.09"]
[Round "3.15"]
[White "Hradek, Matyas"]
[Black "Novotny, David"]
[Result "0-1"]
[ECO "C01"]
[WhiteElo "1508"]
[BlackElo "1910"]
[Annotator "ChessBase"]
[PlyCount "85"]
[EventDate "2020.03.07"]
[EventCountry "CZE"]
[SourceTitle "playchess.com"]
[Source "ChessBase"]
[SourceQuality "1"]
[TimeControl "5400+30"]

1. e4 {[%emt 0:00:00]} e6 {[%emt 0:00:00]} 2. d4 {[%emt 0:00:00]} d5 {[%emt 0:00:00]} 3. exd5 {[%emt 0:00:10]} exd5 {[%emt 0:00:00]} 4. Nf3 {[%emt 0:00:11]} Bd6 {[%emt 0:00:16]} 5. Bd3 {[%emt 0:00:14]} Nc6 {[%emt 0:00:28]} 6. c3 {[%emt 0:00:23]} Nge7 {[%emt 0:01:50]} 7. Bg5 {[%emt 0:04:04]} f6 {[%emt 0:02:02]} 8. Bh4 {[%emt 0:00:47]} Bf5 {[%emt 0:01:21]} 9. O-O {[%emt 0:01:06]} Qd7 {[%emt 0:00:21]} 10. Re1 {[%emt 0:01:30]} O-O-O {[%emt 0:00:35]} 11. a4 {[%emt 0:02:17]} Ng6 {[%emt 0:03:07]} 12. Na3 {[%emt 0:02:52]} Nf4 {[%emt 0:07:08]} 13. Bf1 {[%emt 0:05:04]} h5 {[%emt 0:04:50]} 14. Bg3 {[%emt 0:01:58]} g5 {[%emt 0:02:34]} 15. h4 {[%emt 0:00:48]} Rhg8 {[%emt 0:09:47]} 16. Nb5 {[%emt 0:01:49]} Nh3+ {[%emt 0:16:18]} 17. gxh3 {[%emt 0:03:34]} Bxg3 {[%emt 0:00:23]} 18. fxg3 {[%emt 0:00:10]} gxh4 {[%emt 0:00:38]} 19. Nxh4 {[%emt 0:00:44]} a6 {[%emt 0:14:41]} 20. Qf3 {[%emt 0:06:41]} Be4 {[%emt 0:02:12]} 21. Rxe4 {[%emt 0:00:24]} dxe4 {[%emt 0:00:12]} 22. Qxe4 {[%emt 0:04:42]} axb5 {[%emt 0:04:12]} 23. axb5 {[%emt 0:02:18]} Nb8 {[%emt 0:01:20]} 24. Nf5 {[%emt 0:02:52]} Rde8 {[%emt 0:03:29]} 25. Qf4 {[%emt 0:01:24]} Rg5 {[%emt 0:05:02]} 26. Bd3 {[%emt 0:01:18]} Qe6 {[%emt 0:01:25]} 27. Ng7 {[%emt 0:07:31]} Qe3+ {[%emt 0:06:03]} 28. Qxe3 {[%emt 0:00:12]} Rxe3 {[%emt 0:00:07]} 29. Bf5+ {[%emt 0:00:08]} Rxf5 {[%emt 0:02:16]} 30. Nxf5 {[%emt 0:00:10]} Re2 {[%emt 0:00:39]} 31. Ra2 {[%emt 0:04:14]} c6 {[%emt 0:03:12]} 32. bxc6 {[%emt 0:01:25]} Nxc6 {[%emt 0:00:19]} 33. Kf1 {[%emt 0:00:50]} Rh2 {[%emt 0:00:36]} 34. h4 {[%emt 0:00:04]} Kd7 {[%emt 0:00:42]} 35. Ng7 {[%emt 0:00:59]} Ne7 {[%emt 0:02:10]} 36. Nxh5 {[%emt 0:00:25]} Ke6 {[%emt 0:00:19]} 37. Nf4+ {[%emt 0:00:44]} Kf5 {[%emt 0:00:17]} 38. Ra5+ {[%emt 0:00:38]} Kg4 {[%emt 0:00:34]} 39. Rb5 {[%emt 0:05:52]} Nf5 {[%emt 0:02:31]} 40. Ke1 {[%emt 0:03:43]} Ne3 {[%emt 0:02:18]} 41. Rxb7 {[%emt 0:06:57]} Kf3 {[%emt 0:00:26]} 42. d5 {[%emt 0:00:43]} Rh1+ {[%emt 0:00:33]} 43. Kd2 {[%emt 0:00:09]} 0-1